Cogmind - Beta 12 @@@ ROGUE MODE // 2023.03.15 @ 13:15:52 Player: Peregrine Result: Self-destructed Performance ------------- Evolutions (9) 4500 Regions Visited (19) 3800 Robots Destroyed (72) 360 Value Destroyed (2411) 2411 Prototype IDs (39) 780 Alien Tech Used (0) 0 Bonus (2592) 2592 TOTAL SCORE: 14443 Bonus ------- Triggered Max Security 1000 High Alert Combat Kills 89 Follower Combat Kills 832 Aligned with FarCom 300 Scanned by Researcher 500 Friendly Fire -129 Cogmind --------- Core Integrity 1016/1600 Matter 223/300 Energy 6/100 System Corruption 8% Temperature Cool (27) Movement Core (550) Ox10 Location -1/Access Parts ------- > --- POWER (3) -------- (None) > --- PROPULSION (10) -- Combat Linear Gravjet > --- UTILITY (8) ------ Medium Storage Unit Enhanced Optical Array Experimental Targeting Computer Improved Armor Integrity Analyzer Advanced Force Field > --- WEAPON (4) ------- Compact Linear Accelerator > --- INVENTORY (10) --- Quantum Rifle Heavy Dispersion Rifle Enhanced Quantum Rifle Hardcell Cannon Peak State ------------ > --- POWER ------------ Enhanced Fission Core > --- PROPULSION ------- Antigrav Array Combat Linear Gravjet VTOL Module VTOL Module VTOL Module Nuclear Pulse Array Impulse Thruster Improved Q-thruster > --- UTILITY ---------- Advanced Cooling System Medium Storage Unit Enhanced Optical Array Advanced Targeting Computer Experimental Targeting Computer Improved Armor Integrity Analyzer Experimental Reaction Control System > --- WEAPON ----------- Enhanced Quantum Rifle Enhanced Quantum Rifle Compact Linear Accelerator > --- INVENTORY -------- Advanced Force Field Quantum Rifle Heavy Dispersion Rifle Hardcell Cannon [Rating: 136] Favorites ----------- Power Light Nuclear Core Engine Light Ion Engine Power Core Light Nuclear Core Propulsion Nuclear Pulse Array Leg Flexi-carbon Leg Wheel Wheel Hover Unit Gravmag Array Flight Unit Nuclear Pulse Array Utility Medium Storage Unit Device Improved Terrain Scanner Storage Medium Storage Unit Processor Advanced Terrain Scan Processor Hackware Improved Hacking Suite Protection Improved Medium Armor Plating Weapon Gatling Laser Energy Gun Gatling Laser Energy Cannon Advanced Beam Cannon Ballistic Gun Gauss Rifle Ballistic Cannon Bore Cannon Impact Weapon Makeshift Hammer Build | -11 -10 -9 -9 -9 -8 -8 -7 -6 -6 -5 -5 -5 -4 -4 -4 -3 -2 -2 -1 ------- Run | Jun Mat Mat Min Exi Min Mat Fac Fac Ext Fac Upp Upp Fac Upp Upp Res Res Qua Acc Slots Evolved 18 | . . 2 . . . 2 2 2 . 2 . . 2 . . 2 2 . 2 Power 2 | . . . . . . . 1 . . . . . . . . . 1 . . Propulsion 8 | . . 2 . . . . . 1 . . . . 2 . . . 1 . 2 Utility 6 | . . . . . . 2 1 1 . . . . . . . 2 . . . Weapon 2 | . . . . . . . . . . 2 . . . . . . . . . Parts Attached 242 | 10 . 20 9 8 . 12 3 2 70 35 3 4 13 7 20 14 4 1 7 Power 28 | 2 . 4 . 1 . 1 1 . 10 5 . 1 1 . 2 . . . . Engine 12 | 2 . 3 . 1 . . . . 4 2 . . . . . . . . . Core 16 | . . 1 . . . 1 1 . 6 3 . 1 1 . 2 . . . . Reactor . | . . . . . . . . . . . . . . . . . . . . Propulsion 55 | 2 . 7 4 4 . . . 1 14 5 . . 2 1 9 2 2 . 2 Treads . | . . . . . . . . . . . . . . . . . . . . Leg 17 | . . 1 . . . . . 1 14 1 . . . . . . . . . Wheel 2 | 2 . . . . . . . . . . . . . . . . . . . Hover 5 | . . . . . . . . . . . . . 2 1 . . . . 2 Flight 31 | . . 6 4 4 . . . . . 4 . . . . 9 2 2 . . Utility 83 | 3 . 3 5 1 . 7 2 1 19 17 1 2 5 2 5 7 . 1 2 Device 44 | 2 . 1 1 . . 3 1 1 10 10 1 2 3 1 2 3 . 1 2 Storage 3 | 1 . . . 1 . . . . . . . . . . . 1 . . . Processor 16 | . . . 4 . . 1 1 . 2 4 . . 1 1 1 1 . . . Hackware 1 | . . . . . . . . . . 1 . . . . . . . . . Protection 19 | . . 2 . . . 3 . . 7 2 . . 1 . 2 2 . . . Artifact . | . . . . . . . . . . . . . . . . . . . . Weapon 76 | 3 . 6 . 2 . 4 . . 27 8 2 1 5 4 4 5 2 . 3 Energy Gun 27 | 1 . 3 . . . . . . 14 2 . 1 1 1 . 2 . . 2 Energy Cannon 8 | . . 2 . 2 . 1 . . . 1 . . 1 1 . . . . . Ballistic Gun 19 | 2 . 1 . . . 2 . . 6 4 1 . . . 2 1 . . . Ballistic Cannon 20 | . . . . . . . . . 6 1 1 . 3 2 2 2 2 . 1 Launcher . | . . . . . . . . . . . . . . . . . . . . Special Weapon . | . . . . . . . . . . . . . . . . . . . . Impact Weapon 2 | . . . . . . 1 . . 1 . . . . . . . . . . Slashing Weapon . | . . . . . . . . . . . . . . . . . . . . Piercing Weapon . | . . . . . . . . . . . . . . . . . . . . Special Melee Weapon . | . . . . . . . . . . . . . . . . . . . . Unidentified Prototypes 10 | . . . . . . 1 . . . 3 . . . . . 3 2 1 . Parts Lost 32 | . . 3 2 . . . . . 8 1 . . 5 . . . . 1 12 Power 6 | . . . . . . . . . 4 . . . 1 . . . . . 1 Propulsion 16 | . . 3 2 . . . . . 1 . . . 2 . . . . 1 7 Utility 6 | . . . . . . . . . 1 . . . 2 . . . . . 3 Weapon 4 | . . . . . . . . . 2 1 . . . . . . . . 1 Highest Loss Streak 7 | . . 1 2 . . . . . 2 1 . . 2 . . . . 1 7 To Critical Strikes 1 | . . . . . . . . . 1 . . . . . . . . . . Average Slot Usage (%) 76 | . 100 90 84 71 66 69 76 73 82 87 64 64 60 55 68 72 73 67 57 Engine 4 | . 14 8 11 10 11 5 . . 2 7 . . . . . . . . . Core 5 | . . 2 . . . 3 15 13 7 2 5 5 7 5 5 4 4 4 3 Leg 6 | . . 1 . . . . . . 15 18 . . . . . . . . . Flight 11 | . . 27 29 17 11 9 7 6 2 5 17 17 13 10 26 28 30 28 14 Device 9 | . 28 16 3 . . 15 6 13 11 14 11 11 8 3 . 2 4 5 7 Storage 5 | . . . . 5 11 9 7 6 6 5 5 5 5 5 5 8 8 4 4 Processor 13 | . . . 17 16 11 9 23 20 14 9 11 11 13 19 21 21 21 17 15 Protection 2 | . . 4 . . . 1 . . 5 3 . . . . 2 . . . . Energy Gun 4 | . 14 8 . . . . . . 7 8 . . 1 . . 2 . . 2 Energy Cannon 3 | . . 4 22 21 22 6 . . . . . . . . . . . . . Ballistic Gun 3 | . 14 8 . . . 1 7 6 2 7 4 5 3 . 3 1 . . . Ballistic Cannon 1 | . . . . . . . . . 2 . . . 1 3 1 . 4 6 1 Impact Weapon 1 | . . . . . . 8 7 6 . . . . . . . . . . . Naked Turns . | . . . . . . . . . . . . . . . . . . . . Heaviest Build 85 | 13 7 15 12 21 21 35 34 30 80 85 32 32 32 38 37 35 44 43 54 Greatest Support 105 | 26 26 26 18 50 50 50 50 50 105 96 32 32 32 31 38 36 45 45 41 Greatest Overweight (x) 3 | . . 1 2 3 . . . . 2 1 . . 1 2 1 . . . 1 Average Overweight (x) . | . . . . . . . . . . . . . . . . . . . . Largest Inventory Capacity 10 | 8 5 5 5 10 10 10 10 10 10 10 10 10 10 10 10 10 10 10 10 Average Capacity 9 | 6 5 5 5 7 10 10 10 10 10 10 10 10 10 10 10 10 10 10 10 Most Carried 10 | 3 3 5 5 6 7 10 10 10 10 10 10 10 10 10 10 10 10 9 9 Average Carried 8 | 1 3 4 4 5 6 8 8 9 9 7 9 9 9 9 9 9 9 6 5 Final Capacity 10 | 5 5 5 5 10 10 10 10 10 10 10 10 10 10 10 10 10 10 10 10 Final Carried 10 | 3 3 5 5 6 7 10 10 9 8 10 10 10 10 10 10 10 9 8 4 Class Distribution -------------------- 36% | Mutant 20% | Scout 14% | Scavenger-Mutant 9% | Scavenger-Sprinter 7% | Scavenger-Tank 5% | Sprinter Dominant Class ---------------- Mutant | -10/Materials Scavenger-Sprinter | -9/Materials Scavenger-Mutant | -9/Mines Mutant | -9/Exiles Mutant | -8/Mines Scout | -8/Materials Scout | -7/Factory Scout | -6/Factory Scavenger-Mutant | -6/Extension Scavenger-Tank | -5/Factory Mutant | -5/Upper Caves Mutant | -5/Upper Caves Mutant | -4/Factory Mutant | -4/Upper Caves Sprinter | -4/Upper Caves Scavenger-Sprinter | -3/Research Scavenger-Sprinter | -2/Research Scavenger-Sprinter | -2/Quarantine Mutant | -1/Access Resources | -11 -10 -9 -9 -9 -8 -8 -7 -6 -6 -5 -5 -5 -4 -4 -4 -3 -2 -2 -1 ----------- Run | Jun Mat Mat Min Exi Min Mat Fac Fac Ext Fac Upp Upp Fac Upp Upp Res Res Qua Acc Matter Collected 3959 | 319 . 248 100 160 . 100 . . 1415 287 209 105 14 178 554 . . 67 203 Remotely . | . . . . . . . . . . . . . . . . . . . . Salvage Created 3525 | 221 . 603 176 . . 32 . . 1652 290 112 53 65 50 44 . . 51 176 Parts 148 | 20 . 37 18 . . . . . 42 8 3 4 2 6 3 . . 1 4 Haulers Intercepted 4 | . . 2 . . . . . . . 1 . . . . . . . . 1 Recyclers Shooed 2 | . . 1 . . . . . . 1 . . . . . . . . . . Parts Field Recycled . | . . . . . . . . . . . . . . . . . . . . Retrieved Matter . | . . . . . . . . . . . . . . . . . . . . Parts Self-Destructed 19 | . . . . . . . . . . . . 2 . 4 13 . . . . Prevented . | . . . . . . . . . . . . . . . . . . . . Kills | -11 -10 -9 -9 -9 -8 -8 -7 -6 -6 -5 -5 -5 -4 -4 -4 -3 -2 -2 -1 ------- Run | Jun Mat Mat Min Exi Min Mat Fac Fac Ext Fac Upp Upp Fac Upp Upp Res Res Qua Acc Combat Hostiles Destroyed 45 | . . 10 6 . . . . . 18 6 . 1 1 1 1 . . . 1 Guns 29 | . . 8 . . . . . . 12 6 . 1 . . 1 . . . 1 Cannons 14 | . . 2 6 . . . . . 4 . . . 1 1 . . . . . AOE 1 | . . . . . . . . . 1 . . . . . . . . . . Classes Destroyed 16 | 3 . 5 . . . . . . 4 1 1 . 1 . . . . 1 . Worker 3 | 2 . . . . . . . . . . . . . . . . . 1 . Builder 2 | . . . . . . . . . 2 . . . . . . . . . . Tunneler 5 | 5 . . . . . . . . . . . . . . . . . . . Hauler 4 | . . 2 . . . . . . . 1 . . . . . . . . 1 Recycler 7 | 1 . 1 . . . . . . 5 . . . . . . . . . . Operator 1 | . . . . . . . . . . . . . 1 . . . . . . Watcher 4 | . . 1 . . . 1 . . 2 . . . . . . . . . . Swarmer 12 | . . 3 4 . . . . . . 4 . . . . 1 . . . . Grunt 13 | . . 4 . . . . . . 9 . . . . . . . . . . Brawler 2 | . . . . . . . . . 2 . . . . . . . . . . Researcher 1 | . . . . . . . . . . . . . . . . . . 1 . Sentry 8 | . . 3 2 . . . . . 2 . . . 1 . . . . . . Hunter 3 | . . . . . . . . . 3 . . . . . . . . . . Programmer 5 | . . . . . . . . . . 2 . 1 . 1 . . . . 1 Behemoth 2 | . . . . . . . . . 2 . . . . . . . . . . Samaritan 3 | . . . . . . . . . . . 2 . . . 1 . . . . Best Kill Streak 5 | 5 . 3 4 . . 1 . . 5 4 . 1 1 1 1 . . 1 1 Combat Bots Only 4 | . . 3 4 . . . . . 2 4 . 1 1 1 1 . . . 1 Max Kills in Single Turn 2 | 1 . 1 2 . . 1 . . 2 1 1 1 1 1 1 . . 1 1 Gunslinging . | . . . . . . . . . . . . . . . . . . . . Exploded 1 | . . . . . . . . . 1 . . . . . . . . . . Melee . | . . . . . . . . . . . . . . . . . . . . Uniques/NPCs Destroyed . | . . . . . . . . . . . . . . . . . . . . Combat | -11 -10 -9 -9 -9 -8 -8 -7 -6 -6 -5 -5 -5 -4 -4 -4 -3 -2 -2 -1 -------- Run | Jun Mat Mat Min Exi Min Mat Fac Fac Ext Fac Upp Upp Fac Upp Upp Res Res Qua Acc Damage Taken 6226 | . . 385 109 . . 221 . . 2028 577 . 21 759 155 13 . . 254 1704 Core 1178 | . . 77 25 . . 17 . . 153 65 . 21 147 32 . . . 57 584 Absorbed by Shields 491 | . . . . . . . . . 243 171 . . 39 . . . . . 38 Core Remaining (%) 92 | 100 100 . . . 74 96 100 . 82 . . 91 . . 84 100 . 96 . Volleys Fired 318 | 19 . 44 7 6 . 3 . . 122 14 10 2 27 10 17 1 6 8 22 Largest 4 | 2 . 2 2 2 . 1 . . 2 4 1 2 2 2 1 1 2 1 2 Hottest 257 | 60 . 136 136 136 . 68 . . 160 257 33 113 137 145 65 94 135 70 130 Shots Fired 557 | 38 . 88 14 12 . 3 . . 225 51 10 4 29 11 20 1 7 8 36 Gun 378 | 38 . 62 . . . . . . 154 51 10 4 17 . 11 1 . . 30 Cannon 179 | . . 26 14 12 . 3 . . 71 . . . 12 11 9 . 7 8 6 Launcher . | . . . . . . . . . . . . . . . . . . . . Special . | . . . . . . . . . . . . . . . . . . . . Kinetic 288 | 19 . 36 . . . . . . 121 23 10 2 26 10 20 . 7 8 6 Thermal 266 | 19 . 52 14 12 . 3 . . 104 28 . 2 1 . . 1 . . 30 Explosive . | . . . . . . . . . . . . . . . . . . . . Electromagnetic 3 | . . . . . . . . . . . . . 2 1 . . . . . Robot Hit Streak 26 | 10 . 13 7 . . . . . 26 10 16 24 25 13 13 . . 9 12 Robot Miss Streak 14 | 2 . 3 1 . . 3 . . 14 5 . . 1 2 1 . . . 1 Penetration Max 1 | . . . . . . . . . 1 . . . . . . . . . . Secondary Targets 5 | . . . . . . . . . 2 3 . . . . . . . . . Max Gunslinging Chain 1 | . . . . . . . . . 1 1 . . . . . . . . . Shots Hit Robots 357 | 26 . 61 11 . . 1 . . 143 36 10 4 10 7 14 . . 8 26 Core Hits 168 | 13 . 20 6 . . . . . 88 16 4 3 4 1 5 . . 3 5 Critical Kills 4 | 1 . . . . . . . . 3 . . . . . . . . . . Critical Parts Destroyed 17 | . . . . . . 1 . . 16 . . . . . . . . . . Critical Strikes 28 | 1 . . . . . 1 . . 22 . . . 1 . 3 . . . . Destroy 23 | 1 . . . . . . . . 22 . . . . . . . . . . Blast 4 | . . . . . . . . . . . . . 1 . 3 . . . . Smash 1 | . . . . . . 1 . . . . . . . . . . . . . Melee Attacks 18 | . . . . . . 17 . . 1 . . . . . . . . . . Impact 18 | . . . . . . 17 . . 1 . . . . . . . . . . Slashing . | . . . . . . . . . . . . . . . . . . . . Piercing . | . . . . . . . . . . . . . . . . . . . . Sneak Attacks . | . . . . . . . . . . . . . . . . . . . . Combat Hostiles . | . . . . . . . . . . . . . . . . . . . . Follow-up Attacks . | . . . . . . . . . . . . . . . . . . . . Damage Inflicted 8049 | 243 . 873 250 . . 52 . . 3388 723 237 136 339 177 413 . . 308 910 Guns 5301 | 243 . 463 . . . . . . 2400 723 237 136 24 . 186 . . . 889 Cannons 2440 | . . 410 246 . . . . . 757 . . . 315 177 227 . . 308 . Explosions 231 | . . . . . . . . . 231 . . . . . . . . . . Melee 52 | . . . . . . 52 . . . . . . . . . . . . . Ramming 25 | . . . 4 . . . . . . . . . . . . . . . 21 Kinetic 3329 | 110 . 230 . . . . . . 1324 275 237 52 235 145 413 . . 308 . Thermal 4531 | 133 . 643 246 . . . . . 2064 448 . 84 24 . . . . . 889 Explosive . | . . . . . . . . . . . . . . . . . . . . Electromagnetic 112 | . . . . . . . . . . . . . 80 32 . . . . . Impact 52 | . . . . . . 52 . . . . . . . . . . . . . Slashing . | . . . . . . . . . . . . . . . . . . . . Piercing . | . . . . . . . . . . . . . . . . . . . . Highest Corruption 8 | . . . . . . . . . . 3 . . 3 3 3 . . . 8 Average Corruption 3 | . . . . . . . . . . 2 . . 3 3 3 . . . 4 Corruption Purged 3 | . . . . . . . . . . 3 . . . . . . . . . Corruption Blocked . | . . . . . . . . . . . . . . . . . . . . Effects 37 | . . . . . . . . . . 10 . . 3 6 11 . . . 7 Message Errors 9 | . . . . . . . . . . 1 . . 1 1 2 . . . 4 Matter Fused 9 | . . . . . . . . . . 4 . . 1 1 3 . . . . Heat Flow Errors 5 | . . . . . . . . . . 2 . . . . 2 . . . 1 Energy Discharges 3 | . . . . . . . . . . 1 . . . 1 1 . . . . Data Loss (minor) 4 | . . . . . . . . . . 2 . . . 2 . . . . . Data Loss (major) 3 | . . . . . . . . . . . . . 1 1 . . . . 1 Misfires 3 | . . . . . . . . . . . . . . . 3 . . . . Weapon Failures 1 | . . . . . . . . . . . . . . . . . . . 1 Overload Shots . | . . . . . . . . . . . . . . . . . . . . Overflow Damage 114 | . . 18 1 . . 52 . . . . . . . . 33 . . 10 . Projectiles 62 | . . 18 1 . . . . . . . . . . . 33 . . 10 . Explosions . | . . . . . . . . . . . . . . . . . . . . Melee 52 | . . . . . . 52 . . . . . . . . . . . . . Knockbacks 5 | . . . . . . . . . 1 . . . . 1 . . . 3 . Impact . | . . . . . . . . . . . . . . . . . . . . Kinetic 5 | . . . . . . . . . 1 . . . . 1 . . . 3 . Secondary . | . . . . . . . . . . . . . . . . . . . . Self-Inflicted Damage 11 | . . . 2 . . . . . . . . . . . . . . . 9 Shots . | . . . . . . . . . . . . . . . . . . . . Rammed 4 | . . . 1 . . . . . . . . . . . . . . . 3 Targets Rammed 4 | . . . 1 . . . . . . . . . . . . . . . 3 Kicked . | . . . . . . . . . . . . . . . . . . . . Crushed . | . . . . . . . . . . . . . . . . . . . . Highest Temperature 531 | 40 . 284 277 227 . 119 . . 467 531 . 66 48 51 194 34 69 . 375 Average Temperature 102 | 22 . 110 124 109 . 57 . . 86 210 . 33 17 19 71 22 23 . 145 Received Heat Transfer 1016 | . . 123 . . . 153 . . 532 9 . . . 33 . . . 54 112 Effects 12 | . . . . . . . . . 2 8 . . . . . . . . 2 Shutdowns 5 | . . . . . . . . . 1 4 . . . . . . . . . Energy Bleed 2 | . . . . . . . . . 1 1 . . . . . . . . . Interference 4 | . . . . . . . . . . 2 . . . . . . . . 2 Short Circuit 1 | . . . . . . . . . . 1 . . . . . . . . . Siege Activations . | . . . . . . . . . . . . . . . . . . . . Robots Corrupted . | . . . . . . . . . . . . . . . . . . . . Combat Hostiles . | . . . . . . . . . . . . . . . . . . . . Parts Fried 3 | . . . . . . 2 . . 1 . . . . . . . . . . Impact Corruptions 1 | . . . . . . 1 . . . . . . . . . . . . . Robots Melted 1 | . . . . . . . . . 1 . . . . . . . . . . Combat Hostiles 1 | . . . . . . . . . 1 . . . . . . . . . . Parts Melted 18 | . . 2 1 . . . . . 9 4 . . . . . . . . 2 Heat Transferred 8330 | 300 . 1275 444 . . . . . 4212 937 . 150 50 . . . . . 962 Parts Sabotaged . | . . . . . . . . . . . . . . . . . . . . Parts Stolen . | . . . . . . . . . . . . . . . . . . . . Parts Stripped . | . . . . . . . . . . . . . . . . . . . . Power Chain Reactions . | . . . . . . . . . . . . . . . . . . . . Missiles Intercepted . | . . . . . . . . . . . . . . . . . . . . Alert | -11 -10 -9 -9 -9 -8 -8 -7 -6 -6 -5 -5 -5 -4 -4 -4 -3 -2 -2 -1 ------- Run | Jun Mat Mat Min Exi Min Mat Fac Fac Ext Fac Upp Upp Fac Upp Upp Res Res Qua Acc Peak Influence 1660 | 40 46 224 167 . . 198 140 68 539 415 . . 311 . . 179 133 1660 1177 Initial 1100 | . 26 7 42 . . . 96 68 32 247 . . 135 . . 164 100 74 1100 Average 170 | 16 24 108 102 . . 62 101 68 116 227 . . 102 . . 171 109 1602 1141 Maximum Alert Level 5 | . . 1 . . . . . . 2 2 . . 1 . . . . 5 4 Low Security (%) 76 | 100 100 80 100 . 100 100 100 100 85 22 . . 91 . . 100 100 1 . Level 1 14 | . . 19 . . . . . . 3 71 . . 8 . . . . . . Level 2 4 | . . . . . . . . . 11 5 . . . . . . . . . Level 3 . | . . . . . . . . . . . . . . . . . . . . Level 4 3 | . . . . . . . . . . . . . . . . . . . 100 Level 5 . | . . . . . . . . . . . . . . . . . . . . High Security . | . . . . . . . . . . . . . . . . . . . . Max Security 1 | . . . . . . . . . . . . . . . . . . 98 . Squads Dispatched 19 | . . . . . . 1 . . 5 4 . . 6 . . . . 1 2 Investigation 6 | . . . . . . . . . 1 2 . . 2 . . . . . 1 Extermination 2 | . . . . . . . . . . 2 . . . . . . . . . Reinforcement 9 | . . . . . . 1 . . 4 . . . 3 . . . . 1 . Assault 1 | . . . . . . . . . . . . . . . . . . . 1 Garrison 1 | . . . . . . . . . . . . . 1 . . . . . . Intercept . | . . . . . . . . . . . . . . . . . . . . Searches Triggered . | . . . . . . . . . . . . . . . . . . . . Construction Impeded 1 | . . . . . . . . . 1 . . . . . . . . . . Haulers Reinforced 1 | . . . . . . . . . . . . . 1 . . . . . . Active Scanning Responses . | . . . . . . . . . . . . . . . . . . . . Cargo Convoy Interrupts . | . . . . . . . . . . . . . . . . . . . . Stealth | -11 -10 -9 -9 -9 -8 -8 -7 -6 -6 -5 -5 -5 -4 -4 -4 -3 -2 -2 -1 --------- Run | Jun Mat Mat Min Exi Min Mat Fac Fac Ext Fac Upp Upp Fac Upp Upp Res Res Qua Acc Distress Signals 10 | . . 2 . . . 2 . . 4 . . . 2 . . . . . . Communications Jammed . | . . . . . . . . . . . . . . . . . . . . Distress Signals . | . . . . . . . . . . . . . . . . . . . . Times Spotted 172 | . 2 16 6 . . 18 . . 42 20 3 1 22 7 9 . . 15 11 Peak Tracking Total 15 | . 1 5 4 . . 12 . . 5 8 3 1 11 4 5 . . 15 7 Tactical Retreats 33 | . . 1 . . . 7 . . 9 6 1 . 4 2 1 . . 1 1 Traps | -11 -10 -9 -9 -9 -8 -8 -7 -6 -6 -5 -5 -5 -4 -4 -4 -3 -2 -2 -1 ------- Run | Jun Mat Mat Min Exi Min Mat Fac Fac Ext Fac Upp Upp Fac Upp Upp Res Res Qua Acc Traps Triggered 4 | . . . . . . . . . 3 1 . . . . . . . . . Indirectly . | . . . . . . . . . . . . . . . . . . . . Trap Hack Attempts . | . . . . . . . . . . . . . . . . . . . . Triggered . | . . . . . . . . . . . . . . . . . . . . Disarmed . | . . . . . . . . . . . . . . . . . . . . Reprogrammed 5 | . 5 . . . . . . . . . . . . . . . . . . Reused . | . . . . . . . . . . . . . . . . . . . . Traps Extracted . | . . . . . . . . . . . . . . . . . . . . Installed . | . . . . . . . . . . . . . . . . . . . . Triggered 2 | . . . . . . . . . . . . . . 2 . . . . . Machines | -11 -10 -9 -9 -9 -8 -8 -7 -6 -6 -5 -5 -5 -4 -4 -4 -3 -2 -2 -1 ---------- Run | Jun Mat Mat Min Exi Min Mat Fac Fac Ext Fac Upp Upp Fac Upp Upp Res Res Qua Acc Machines Disabled 7 | . . . . 1 . . . . 5 . . . 1 . . . . . . Max in Single Turn 3 | . . . . 1 . . . . 3 . . . 1 . . . . . . Garrison Access 2 | . . . . . . . . . . . . . 1 . . . . . 1 Energy Cycler 2 | . . . . . . . . . 2 . . . . . . . . . . Machines Repaired . | . . . . . . . . . . . . . . . . . . . . Machines Sabotaged . | . . . . . . . . . . . . . . . . . . . . Overloaded Fab Kills . | . . . . . . . . . . . . . . . . . . . . Hacking | -11 -10 -9 -9 -9 -8 -8 -7 -6 -6 -5 -5 -5 -4 -4 -4 -3 -2 -2 -1 --------- Run | Jun Mat Mat Min Exi Min Mat Fac Fac Ext Fac Upp Upp Fac Upp Upp Res Res Qua Acc Machines Accessed 40 | . 4 . . 5 . 5 2 1 3 8 . . 8 . 2 . 1 . 1 Terminals 23 | . 4 . . . . 5 1 1 2 4 . . 5 . . . 1 . . Fabricators 1 | . . . . . . . . . . 1 . . . . . . . . . Repair Stations 2 | . . . . . . . . . . 1 . . 1 . . . . . . Recycling Units 2 | . . . . . . . . . 1 1 . . . . . . . . . Scanalyzers 3 | . . . . . . . 1 . . 1 . . 1 . . . . . . Garrison Access 2 | . . . . . . . . . . . . . 1 . . . . . 1 Total Hacks 149 | . 16 . . 50 . 18 5 1 6 22 . . 22 . 5 . 1 . 3 Successful 98 | . 9 . . 50 . 7 4 1 4 8 . . 10 . 5 . . . . Failed 51 | . 7 . . . . 11 1 . 2 14 . . 12 . . . 1 . 3 Catastrophic 6 | . . . . . . . . . 2 1 . . 1 . . . 1 . 1 Database Lockouts . | . . . . . . . . . . . . . . . . . . . . Manual 54 | . 8 . . 7 . 13 2 . 3 7 . . 13 . . . 1 . . Terminals 67 | . 16 . . . . 18 2 1 4 10 . . 15 . . . 1 . . Fabricators 5 | . . . . . . . . . . 5 . . . . . . . . . Repair Stations 4 | . . . . . . . . . . 2 . . 2 . . . . . . Recycling Units 4 | . . . . . . . . . 2 2 . . . . . . . . . Scanalyzers 9 | . . . . . . . 3 . . 3 . . 3 . . . . . . Garrison Access 5 | . . . . . . . . . . . . . 2 . . . . . 3 Terminal Hacks 69 | . 7 . . 50 . 3 . 1 1 . . . 2 . 5 . . . . Record 54 | . . . . 49 . 1 . . . . . . . . 4 . . . . Robot Analysis 1 | . . . . . . 1 . . . . . . . . . . . . . Prototype ID Bank 2 | . 1 . . . . 1 . . . . . . . . . . . . . Open Door 3 | . . . . . . . . 1 1 . . . . . 1 . . . . Branch Access Points 1 | . 1 . . . . . . . . . . . . . . . . . . Unreport Threat 4 | . 3 . . . . . . . . . . . 1 . . . . . . Locate Traps 2 | . 1 . . . . . . . . . . . 1 . . . . . . Reprogram Traps 1 | . 1 . . . . . . . . . . . . . . . . . . EX-Prototype ID Bank 1 | . . . . 1 . . . . . . . . . . . . . . . Fabricator Hacks 2 | . . . . . . . . . . 2 . . . . . . . . . Load Schematic 1 | . . . . . . . . . . 1 . . . . . . . . . Build 1 | . . . . . . . . . . 1 . . . . . . . . . Repair Station Hacks 3 | . . . . . . . . . . 1 . . 2 . . . . . . Scan Component 1 | . . . . . . . . . . . . . 1 . . . . . . Refit 2 | . . . . . . . . . . 1 . . 1 . . . . . . Recycling Unit Hacks 3 | . . . . . . . . . 2 1 . . . . . . . . . Report Inventory 2 | . . . . . . . . . 1 1 . . . . . . . . . Retrieve Components 1 | . . . . . . . . . 1 . . . . . . . . . . Scanalyzer 7 | . . . . . . . 3 . . 2 . . 2 . . . . . . Insert Component 5 | . . . . . . . 2 . . 2 . . 1 . . . . . . Analyze 2 | . . . . . . . 1 . . . . . 1 . . . . . . Garrison Access Hacks 1 | . . . . . . . . . . . . . 1 . . . . . . Seal Access 1 | . . . . . . . . . . . . . 1 . . . . . . Unauthorized Hacks 13 | . 2 . . . . 4 1 . 1 2 . . 3 . . . . . . Terminals 13 | . 2 . . . . 4 1 . 1 2 . . 3 . . . . . . Assimilate 3 | . . . . . . 2 . . 1 . . . . . . . . . . Botnet 10 | . 2 . . . . 2 1 . . 2 . . 3 . . . . . . Fabricators . | . . . . . . . . . . . . . . . . . . . . Repair Stations . | . . . . . . . . . . . . . . . . . . . . Recycling Units . | . . . . . . . . . . . . . . . . . . . . Scanalyzers . | . . . . . . . . . . . . . . . . . . . . Garrison Access . | . . . . . . . . . . . . . . . . . . . . Data Cores Recovered 1 | . . . . . . . . . . . . . 1 . . . . . . Used 1 | . . . . . . . . . . . . . 1 . . . . . . Hacking Detections 28 | . 4 . . . . 5 2 . 2 7 . . 6 . . . 1 . 1 Full Trace Events 5 | . . . . . . . . . . 2 . . 2 . . . . . 1 Feedback Events 1 | . . . . . . . . . . . . . . . . . . . 1 Corruption 1 | . . . . . . . . . . . . . . . . . . . 1 Feedback Blocked . | . . . . . . . . . . . . . . . . . . . . Robot Schematics Acquired 2 | . . . . . . . . . . . . . . . . . . 2 . Robots Built . | . . . . . . . . . . . . . . . . . . . . Authchips . | . . . . . . . . . . . . . . . . . . . . Time . | . . . . . . . . . . . . . . . . . . . . Total Robot Build Rating . | . . . . . . . . . . . . . . . . . . . . Part Schematics Acquired 3 | . . . . . . . 1 . . . . . 1 . . . . 1 . Parts Built 2 | . . . . . . . . . . 2 . . . . . . . . . Authchips . | . . . . . . . . . . . . . . . . . . . . Time 84 | . . . . . . . . . . 84 . . . . . . . . . Total Part Build Rating 8 | . . . . . . . . . . 8 . . . . . . . . . Parts Repaired . | . . . . . . . . . . . . . . . . . . . . Time . | . . . . . . . . . . . . . . . . . . . . Parts Recycled . | . . . . . . . . . . . . . . . . . . . . Recycled Matter . | . . . . . . . . . . . . . . . . . . . . Retrieved Matter . | . . . . . . . . . . . . . . . . . . . . Retrieved Components 10 | . . . . . . . . . 10 . . . . . . . . . . Parts Scanalyzed 3 | . . . . . . . 1 . . 1 . . 1 . . . . . . Part Schematics Acquired 2 | . . . . . . . 1 . . . . . 1 . . . . . . Parts Damaged . | . . . . . . . . . . . . . . . . . . . . Bothacking | -11 -10 -9 -9 -9 -8 -8 -7 -6 -6 -5 -5 -5 -4 -4 -4 -3 -2 -2 -1 ------------ Run | Jun Mat Mat Min Exi Min Mat Fac Fac Ext Fac Upp Upp Fac Upp Upp Res Res Qua Acc Used RIF Installer . | . . . . . . . . . . . . . . . . . . . . Robots Hacked . | . . . . . . . . . . . . . . . . . . . . Non-combat . | . . . . . . . . . . . . . . . . . . . . Combat . | . . . . . . . . . . . . . . . . . . . . Robot Hacks Applied . | . . . . . . . . . . . . . . . . . . . . Relay Couplers Released . | . . . . . . . . . . . . . . . . . . . . Fabnet Peak Effective % . | . . . . . . . . . . . . . . . . . . . . Robots Rewired 12 | . . . . . . . . . 12 . . . . . . . . . . Allies Hacked . | . . . . . . . . . . . . . . . . . . . . Hacks Repelled . | . . . . . . . . . . . . . . . . . . . . Allies | -11 -10 -9 -9 -9 -8 -8 -7 -6 -6 -5 -5 -5 -4 -4 -4 -3 -2 -2 -1 -------- Run | Jun Mat Mat Min Exi Min Mat Fac Fac Ext Fac Upp Upp Fac Upp Upp Res Res Qua Acc Total Allies 17 | . . . . . . . . . 15 . . . . . 2 . . . . Largest Group 6 | . . . . . . . . . 6 1 . . . . 2 . . . . Highest-Rated Group 178 | . . . . . . . . . 178 159 . . . . 76 . . . . Highest-Rated Ally 159 | . . . . . . . . . 159 159 . . . . 38 . . . . Total Orders . | . . . . . . . . . . . . . . . . . . . . Ally Attacks 116 | . . . . . . . . . 104 . . . . . 12 . . . . Total Damage 3496 | . . . . . . . . . 3100 . . . . . 396 . . . . Kills 26 | . . . . . . . . . 19 . . . . . 7 . . . . Allies Corrupted . | . . . . . . . . . . . . . . . . . . . . Allies Melted 1 | . . . . . . . . . 1 . . . . . . . . . . Intel | -11 -10 -9 -9 -9 -8 -8 -7 -6 -6 -5 -5 -5 -4 -4 -4 -3 -2 -2 -1 ------- Run | Jun Mat Mat Min Exi Min Mat Fac Fac Ext Fac Upp Upp Fac Upp Upp Res Res Qua Acc Robot Analysis Total 1 | . . . . . . 1 . . . . . . . . . . . . . Derelict Logs Recovered 3 | . . . 1 . . . . . . . . . . 1 1 . . . . Drone Launches . | . . . . . . . . . . . . . . . . . . . . Drone Recoveries . | . . . . . . . . . . . . . . . . . . . . Exploration | -11 -10 -9 -9 -9 -8 -8 -7 -6 -6 -5 -5 -5 -4 -4 -4 -3 -2 -2 -1 ------------- Run | Jun Mat Mat Min Exi Min Mat Fac Fac Ext Fac Upp Upp Fac Upp Upp Res Res Qua Acc Turns Passed 8762 | 151 127 514 186 498 268 662 374 203 2423 1130 143 27 585 319 507 193 126 96 230 Spaces Moved 8700 | 88 142 363 314 904 438 452 209 53 1463 1049 311 36 686 583 572 365 143 208 321 Core 10 | 9 . . . 1 . . . . . . . . . . . . . . . Treads . | . . . . . . . . . . . . . . . . . . . . Legs 1215 | . . . . . . . . . 750 465 . . . . . . . . . Wheels 300 | 79 142 79 . . . . . . . . . . . . . . . . . Hover 341 | . . . . . . . . . . . . . 21 144 . . . . 176 Flight 6834 | . . 284 314 903 438 452 209 53 713 584 311 36 665 439 572 365 143 208 145 Fastest Speed 17 | 50 90 31 31 31 50 50 50 50 50 34 34 34 34 37 17 20 18 19 22 Average Speed 53 | 85 90 46 38 46 50 50 50 50 92 72 34 34 37 42 33 20 18 19 40 Slowest Speed 260 | 90 90 135 200 200 50 50 50 50 260 150 34 34 111 180 117 21 19 22 104 Overloaded Moves . | . . . . . . . . . . . . . . . . . . . . Propulsion Burnouts . | . . . . . . . . . . . . . . . . . . . . Robots Hopped 20 | . . 2 . . 1 1 . . 4 3 . . 5 . . 1 1 1 1 Cave-ins Triggered 1 | . . . . . . . . . . . . . 1 . . . . . . Exploration Rate (%) 35 | 6 29 22 75 94 88 31 4 3 68 22 46 10 23 80 56 8 3 21 12 Regions Visited 19 Branch Regions 9 Pre-discovered Areas 1 | . . . . 1 . . . . . . . . . . . . . . . Known Exits Taken 1 | . . . . . . . . . . . . . . . . 1 . . . Unknown Exits Taken 18 | 1 1 1 1 1 1 1 1 1 1 1 1 1 1 1 1 . 1 1 . Scrap Searched 8 | . . . 2 . 1 . . . . . 2 . . 2 1 . . . . Spaces Dug 35 | . . . . . . 16 . . . . . . 5 . 2 . 6 . 6 Terrain Destroyed 94 | . . . . . . 16 . . 47 . . 1 5 7 6 . 6 . 6 Melee 16 | . . . . . . 16 . . . . . . . . . . . . . Projectile 61 | . . . . . . . . . 30 . . 1 5 7 6 . 6 . 6 AOE 17 | . . . . . . . . . 17 . . . . . . . . . . Terrain Rammed . | . . . . . . . . . . . . . . . . . . . . Walls Destroyed . | . . . . . . . . . . . . . . . . . . . . Machines Disabled . | . . . . . . . . . . . . . . . . . . . . Actions | -11 -10 -9 -9 -9 -8 -8 -7 -6 -6 -5 -5 -5 -4 -4 -4 -3 -2 -2 -1 --------- Run | Jun Mat Mat Min Exi Min Mat Fac Fac Ext Fac Upp Upp Fac Upp Upp Res Res Qua Acc Total 12212 | 128 141 621 365 973 485 869 478 229 2278 1393 340 46 983 647 876 486 235 256 383 Wait 2420 | . . 171 25 42 48 357 261 173 364 223 6 1 251 37 239 86 76 33 27 Move 8642 | 87 141 358 313 903 435 449 208 52 1454 1042 310 35 676 582 571 362 140 205 319 Hop 19 | . . 2 . . 1 1 . . 4 3 . . 4 . . 1 1 1 1 Pick Up 149 | 11 . 12 3 2 1 16 4 1 38 32 4 . 1 2 8 7 4 2 1 Fast Attach 56 | . . 4 7 8 . 2 . . 6 6 1 3 7 2 6 4 . . . Attach 101 | 7 . 4 . . . 3 2 2 17 19 2 1 5 5 12 10 4 1 7 Detach 49 | . . 1 . . . . . . 7 9 1 1 4 6 8 7 1 1 3 Swap 86 | 3 . 12 2 . . 7 1 . 47 11 . . 1 . 2 . . . . Drop 171 | 1 . 13 7 12 . 14 2 1 39 34 6 3 7 3 13 8 3 5 . Fire 318 | 19 . 44 7 6 . 3 . . 122 14 10 2 27 10 17 1 6 8 22 Melee 18 | . . . . . . 17 . . 1 . . . . . . . . . . Ram 4 | . . . 1 . . . . . . . . . . . . . . . 3 Kick . | . . . . . . . . . . . . . . . . . . . . Crush . | . . . . . . . . . . . . . . . . . . . . Escape Stasis 8 | . . . . . . . . . 8 . . . . . . . . . . Rewire 171 | . . . . . . . . . 171 . . . . . . . . . . Trap . | . . . . . . . . . . . . . . . . . . . . Miscellaneous . | . . . . . . . . . . . . . . . . . . . . Route ------- -11/Junkyard -10/Materials (discovered 2 exits: [*Mat] / *Min) -9/Materials -9/Mines -9/Exiles (discovered 2 exits: [*Min x2]) -8/Mines -8/Materials -7/Factory -6/Factory -6/Extension (discovered 3 exits: *Fac x2 / [*Cet]) -5/Factory -5/Upper Caves -5/Upper Caves -4/Factory -4/Upper Caves -4/Upper Caves -3/Research -2/Research -2/Quarantine -1/Access History --------- Turn | Location | Event 25 | -11/Junkyard | Discovered new exit (range 16) 152 | -11/Junkyard | Entered Materials 246 | -10/Materials | Identified exit to Mines 266 | -10/Materials | Discovered new exit (range 16) 279 | -10/Materials | Entered another Materials area 279 | -9/Materials | Evolved 2 slots: Propulsion x2 305 | -9/Materials | Build established: Mutant 769 | -9/Materials | Discovered new exit (range 15) 793 | -9/Materials | Entered Mines 811 | -9/Mines | Learned Materials garrison access intel 821 | -9/Mines | Met a Derelict bent on vengeance 881 | -9/Mines | A weapon hastily lodged in a ceiling crevice suddenly fell to the ground 978 | -9/Mines | Deemed a non-threat by the Exiles lab entrance 978 | -9/Mines | Discovered new exit (range 5) 979 | -9/Mines | Entered Exiles 1052 | -9/Exiles | Discovered new exit (range 15) 1059 | -9/Exiles | Met 8R-AWN 1063 | -9/Exiles | Met EX-HEX 1077 | -9/Exiles | Met EX-BIN 1083 | -9/Exiles | Aligned with FarCom system 1083 | -9/Exiles | Given EX-Vault access code 1096 | -9/Exiles | Opened EX-Vault 1102 | -9/Exiles | Found Flying Fortress v7 1125 | -9/Exiles | Warned to stay clear of 0b10 Research branches 1170 | -9/Exiles | Met EX-DEC 1178 | -9/Exiles | Learned location of Zion (-6) 1230 | -9/Exiles | Discovered new exit (range 10) 1268 | -9/Exiles | Visited The Gauntlet 1477 | -9/Exiles | Left Exiles lab with Flying Fortress v7 1477 | -9/Exiles | Entered Mines 1742 | -8/Mines | Discovered new exit (range 6) 1745 | -8/Mines | Entered Materials 1745 | -8/Materials | Evolved 2 slots: Utility x2 1746 | -8/Materials | Loaded intel: 1 garrison access location 2150 | -8/Materials | Build established: Scout 2380 | -8/Materials | Discovered new exit (range 13) 2407 | -8/Materials | Entered Factory 2407 | -7/Factory | Evolved 2 slots: Power x1, Utility x1 2516 | -7/Factory | Discovered new exit (range 15) 2781 | -7/Factory | Entered another Factory area 2781 | -6/Factory | Evolved 2 slots: Propulsion x1, Utility x1 2982 | -6/Factory | Discovered new exit (range 4) 2984 | -6/Factory | Entered Extension 2989 | -6/Extension | Disrupted transfer network 3668 | -6/Extension | Rescued a captive Derelict 3669 | -6/Extension | Rescued a captive Derelict 4064 | -6/Extension | Spotted B-75 Beast 4081 | -6/Extension | Spotted B-75 Beast 4105 | -6/Extension | Destroyed B-75 Beast 4383 | -6/Extension | Build established: Mutant 4716 | -6/Extension | Build established: Scavenger-Mutant 4844 | -6/Extension | Energy Cycler disabled 4849 | -6/Extension | Rescued a captive Derelict 4849 | -6/Extension | Rescued a captive Derelict 5044 | -6/Extension | Rescued A7 5046 | -6/Extension | Destroyed B-75 Beast 5059 | -6/Extension | Discovered new exit (range 15) 5347 | -6/Extension | Discovered new exit (range 16) 5353 | -6/Extension | Discovered new exit (range 15) 5407 | -6/Extension | Entered Factory 5407 | -5/Factory | Accompanied by 1 ally (A7) 5407 | -5/Factory | Evolved 2 slots: Weapon x2 5882 | -5/Factory | Build established: Scavenger-Tank 6212 | -5/Factory | Found Prototype Processor 6212 | -5/Factory | Identified Exp. Targeting Computer 6326 | -5/Factory | Fabricated Recalibrator? 6427 | -5/Factory | Build established: Mutant 6492 | -5/Factory | Discovered new exit (range 15) 6537 | -5/Factory | Entered Upper Caves 6633 | -5/Upper Caves | Discovered new exit (range 8) 6680 | -5/Upper Caves | Entered another Upper Caves area 6705 | -5/Upper Caves | Discovered new exit (range 10) 6707 | -5/Upper Caves | Entered Factory 6707 | -4/Factory | Evolved 2 slots: Propulsion x2 7055 | -4/Factory | Crushed by falling debris 7198 | -4/Factory | Garrison activated, responded to threat 7268 | -4/Factory | Discovered new exit (range 21) 7292 | -4/Factory | Entered Upper Caves 7365 | -4/Upper Caves | Learned location of 1 exit from Proximity Caves 7575 | -4/Upper Caves | Discovered new exit (range 21) 7611 | -4/Upper Caves | Entered another Upper Caves area 7675 | -4/Upper Caves | Discovered new exit (range 18) 7689 | -4/Upper Caves | Learned 4 Research zone layouts 7698 | -4/Upper Caves | Learned Factory trap positions 7698 | -4/Upper Caves | Learned Factory emergency access door positions 7698 | -4/Upper Caves | Learned Research garrison access intel 7728 | -4/Upper Caves | A Commander dispatched an escort 7944 | -4/Upper Caves | Build established: Sprinter 8118 | -4/Upper Caves | Entered Research 8118 | -3/Research | Accompanied by 2 allies 8118 | -3/Research | Evolved 2 slots: Utility x2 8119 | -3/Research | Commander's escort returned to base 8119 | -3/Research | Commander's escort returned to base 8119 | -3/Research | Identified exit to Research 8120 | -3/Research | Loaded intel: 4 garrison access locations 8163 | -3/Research | Spotted B-86 Titan 8311 | -3/Research | Entered another Research area 8311 | -2/Research | Evolved 2 slots: Power x1, Propulsion x1 8424 | -2/Research | Discovered new exit (range 13) 8437 | -2/Research | Entered Quarantine 8438 | -2/Quarantine | Maximum security lockdown engaged 8448 | -2/Quarantine | Scanned by Researcher 8461 | -2/Quarantine | Build established: Scavenger-Sprinter 8523 | -2/Quarantine | Discovered new exit (range 14) 8533 | -2/Quarantine | Entered Access 8533 | -1/Access | Evolved 2 slots: Propulsion x2 8657 | -1/Access | Spotted B-99 Colossus 8696 | -1/Access | Lost 5 parts (4n1w) 8763 | -1/Access | Self-destructed Last Messages --------------- Feedback: System corruption (+1%). 08740_ ALERT: Suspicious activity at Garrison Access A001. Dispatching Investigation squad. 08743_ Garrison Access collapses. 08743_ ALERT: Garrison Access compromised, dispatching assault squad. 08743_ Garrison Access disabled. 08743_ Slug penetrates Garrison Access. 08744_ Garrison Access collapses. 08746_ Enh. Fission Core destroyed. 08747_ Acquired 7 matter. 08747_ Acquired 3 matter. 08749_ 8WC=C AH&,F NVNQNPX:>WQB79AHDR2YBIKG 08749_ Acquired 6 matter. 08750_ Acquired 5 matter. 08753_ Slammed into G-73 Enforcer. 08753_ Adv. Targeting Computer destroyed. 08753_ System corrupted by crushing effect (+2). 08754_ Slammed into G-73 Enforcer. 08757_ Slammed into B-74 Champion. 08763_ Antigrav Array destroyed. Map ----- +----------------------------------------------------+ | ????????????????????????????????????# "" # | | ???????????????????????##########???#% "" # | | ???????????????????????# #???# # | | ???????????????????????# #???# # | | ???????????????????????# #???# # | | ???????????????????????# #???# # | | ???????????????????????# ###########+#""""" | | ???????????????????????# # """G""" | | ???????????????????????# # """ " | | ???????????????????????# # | | ???????????????????????# # *[ | | ???????????????????????# # *[ | | ???????????????????????# # ]] *[ | | ???????????????????????# # ]] | | ???????????????????????# # ]] | | ???????????????????????# # | | ???????????????????????# # | | ???????????????????????# ! # | | ???????????????????????# # #### #### | | ???????????????????????# # #??# ## | | ???????????##################g### ######## | | ??????? k A # | | ?????????????????## gg g # | | ??????????????????# # | | ??????????????????# b + | | ??????????????????# @ Y # | | ??????????????????# # | | ?????????????? A # | | ?????????? ######## ################# # | | ?????????#???????????# ????????????????# # | | ?????????????????????#?????????????????# # | | ??????????????????????w????????????????# ### | | ???????????????????????????????????????# #?? | | ???????????????????????????????????????# #?? | | ????????????????????????????????######## #? | | ????????????????????????????????# #? | | ????????????????????????????????# # | | ????????????????????????????????# # | | ????????????????????????????????+ + | | ????????????????????????????????# # | | ????????????????????????????????# ! # | | ????????????????????????????????# ! ! #? | | ????????????????????????????????# ########? | | ????????????????????????????????# #????????? | | ????????????????????????????????# #????????? | | ????????????????????????????????# #????????? | | ????????????????????????????????# ########## | | ????????????????????????????????# # | | ????????????????????????????????# # | | ????????????????????????????????# # | +----------------------------------------------------+ Best States ------------- Heat Dissipation 77 Energy Generation 37 Energy Capacity 600 Matter Stores 300 Matter Capacity 700 Sight Range 22 Terrain Scan Range 16 Terrain Scan Density 410 Additional Mass Support 6 Armor Coverage 675 Resistance: KI 30 Core Shielding 30 Phase Shifting 5 Evasion (%) 79 Targeting Accuracy 24 Core Analysis 6 Armor Integrity Analysis 40 Energy Filtering 30 Offensive Hacking 12 Item Schematics ----------------- Recalibrator | -7/Factory | Scanalyzed Adv. Terrain Scan Processor | -4/Factory | Scanalyzed Com. Mass Driver | -2/Quarantine | Archive Robot Schematics ------------------ A-02 Transporter | -2/Quarantine | Archive K-01 Serf | -2/Quarantine | Archive Fabricated ------------ Recalibrator | x2 | -5/Factory Alien Tech Used ----------------- None Achievements -------------- Dangerous Findings Denied? Dodgeball, But With Guns Omniscient Cartographer Prison Break Challenges ------------ None Game ------ Seed PortableAutogunAutocannon Manual? 0 Play Time 03:44:12 Cumulative 48.4 hours Start 2023.03.14 @ 15:34:24 End 2023.03.15 @ 13:15:52 Sessions 3 Manual Loads 0 Difficulty Rogue Special Mode None Game No. 63 Rogue 62 Adventurer 1 Explorer 0 Win Type - Total 0 Types 0/0/0/0/0/0/0/0/0 Lore% 23 Gallery% 40 Achievement% 32 Wizard Run 0 Options --------- ASCII 0 Keyboard 0 Movement Mouse Keybinds 0 Fullscreen 1 Font 36/Smallcaps Map View 76x50 Tactical HUD 1 Map Filters NONE Filters NONE Steam 1 RUN: 83c3b1b8-08f9-462b-a604-84114b1e399f